bitfinex-derivatives/quotes_BTCF0:USTF0_20241022
["timestamp","ask_amount","ask_price","bid_price","bid_amount"]
[1729597983558,0.13685176,67382.0,67381.0,0.26766014]
[1729597984459,0.13685176,67382.0,67381.0,0.1785689]
[1729597984847,0.13685176,67382.0,67381.0,0.17852307]
[1729597985751,0.21110376,67382.0,67381.0,0.17852307]
[1729597988655,0.13685176,67382.0,67381.0,0.17852307]
[1729597988951,0.02685176,67382.0,67381.0,0.17852307]
[1729597989158,0.074251,67383.0,67381.0,0.10427007]
[1729597989358,0.074251,67383.0,67382.0,0.17652207]
[1729597990763,0.075251,67383.0,67382.0,0.17652207]
[1729597991263,0.074251,67383.0,67382.0,0.17652207]
[1729597991457,0.075251,67383.0,67382.0,0.17752207]
[1729597992061,0.075251,67383.0,67382.0,0.17852207]
[1729597993150,0.14210318,67383.0,67382.0,0.076252]
[1729597994152,0.06785218,67383.0,67382.0,0.186252]
[1729597995060,0.06785218,67383.0,67382.0,0.076252]
[1729597995465,0.06783987,67383.0,67382.0,0.076252]
[1729597999262,0.074239,67394.0,67382.0,0.5572]
[1729597999462,0.11,67395.0,67394.0,0.074238]
[1729597999664,0.184237,67395.0,67394.0,0.074238]
[1729598000062,0.184237,67395.0,67394.0,0.1765058]
[1729598000764,0.184237,67395.0,67394.0,0.25063401]
[1729598000965,0.185237,67395.0,67394.0,0.25163401]
[1729598001362,0.185237,67395.0,67394.0,0.15036621]
[1729598002565,0.185237,67395.0,67394.0,0.076238]
[1729598003265,0.185237,67395.0,67394.0,0.25255794]
[1729598003567,0.185237,67395.0,67394.0,0.15036621]
[1729598004065,0.111,67395.0,67394.0,0.15036621]
[1729598004463,0.111,67395.0,67394.0,0.076238]
[1729598008268,0.19293306,67395.0,67394.0,0.076238]
[1729598009278,0.22331942,67395.0,67394.0,0.076238]
[1729598009968,0.22331846,67395.0,67394.0,0.076238]
[1729598012174,0.40755546,67395.0,67394.0,0.002]
[1729598012379,0.57090225,67395.0,67394.0,0.00120223]
[1729598012675,0.46080819,67395.0,67394.0,0.00120223]
[1729598014468,0.40755546,67395.0,67394.0,0.00120223]
[1729598014667,0.46081482,67395.0,67394.0,0.00120223]
[1729598015166,0.295237,67395.0,67394.0,0.00120223]
[1729598017470,0.295237,67395.0,67394.0,0.04563383]
[1729598022287,0.074244,67389.0,67388.0,0.05924213]
[1729598022579,0.531764,67389.0,67388.0,0.05924213]
[1729598023280,0.074251,67383.0,67382.0,0.074251]
[1729598024086,0.18685034,67383.0,67382.0,0.074251]
[1729598025185,0.18785034,67383.0,67382.0,0.075251]
[1729598025595,0.18885034,67383.0,67382.0,0.076251]
[1729598025980,0.14327034,67383.0,67382.0,0.076251]
[1729598026285,0.23999034,67383.0,67382.0,0.076251]
[1729598027587,0.26706064,67383.0,67382.0,0.076251]
[1729598030285,0.2000413,67383.0,67382.0,0.17815429]
[1729598030692,0.2000413,67383.0,67382.0,0.26724553]
[1729598032786,0.2000413,67383.0,67382.0,0.17815429]
[1729598033790,0.1257903,67383.0,67382.0,0.17815429]
[1729598034486,0.2000413,67383.0,67382.0,0.17815429]
[1729598038394,0.2000413,67383.0,67382.0,0.076251]
[1729598041391,0.2000413,67383.0,67382.0,0.17782371]
[1729598041797,0.2000413,67383.0,67382.0,0.10357271]
[1729598041991,0.6708413,67383.0,67382.0,0.002]
[1729598042190,0.6708413,67383.0,67382.0,0.06134625]
[1729598042502,0.6708413,67383.0,67382.0,0.002]
[1729598045398,0.78346927,67383.0,67382.0,0.002]
[1729598046395,0.7378836,67383.0,67382.0,0.002]
[1729598047003,0.6278836,67383.0,67382.0,0.002]
[1729598047392,0.62787907,67383.0,67382.0,0.002]
[1729598050095,0.64115907,67383.0,67382.0,0.002]
[1729598050293,0.73791907,67383.0,67382.0,0.002]
[1729598052101,0.73796973,67383.0,67382.0,0.002]
[1729598053503,0.6708813,67383.0,67382.0,0.10401344]
[1729598055301,0.6708813,67383.0,67382.0,0.17815404]
[1729598055500,0.6708813,67383.0,67382.0,0.10401344]
[1729598055908,0.6708813,67383.0,67382.0,0.17814708]
[1729598056309,0.6708813,67383.0,67382.0,0.10401344]
[1729598056704,0.6708813,67383.0,67382.0,0.002]
[1729598057509,0.6708413,67383.0,67382.0,0.002]
[1729598058412,1.0316413,67383.0,67382.0,0.002]
[1729598059099,1.0316413,67383.0,67382.0,0.07612902]
[1729598059296,1.0316413,67383.0,67382.0,0.17826622]
[1729598059496,1.0316413,67383.0,67382.0,0.17827601]
[1729598059708,1.0316413,67383.0,67382.0,0.1041372]
[1729598060410,1.09863649,67383.0,67382.0,0.002]
[1729598061818,1.14422142,67383.0,67382.0,0.002]
[1729598062406,0.074263,67372.0,67371.0,0.074263]
[1729598062611,0.21489106,67372.0,67371.0,0.074263]
[1729598063712,0.25125999,67372.0,67371.0,0.074263]
[1729598063909,0.21489106,67372.0,67371.0,0.074263]
[1729598064507,0.21589106,67372.0,67371.0,0.074263]
[1729598064712,0.21689106,67372.0,67371.0,0.074263]
[1729598066815,0.2167559,67372.0,67371.0,0.074263]
[1729598067015,0.25312461,67372.0,67371.0,0.074263]
[1729598068518,0.186263,67372.0,67371.0,0.29855059]
[1729598069115,0.1388195,67372.0,67371.0,0.29855059]
[1729598069310,0.2130825,67372.0,67371.0,0.29855059]
[1729598073527,0.2130825,67372.0,67371.0,0.22428759]
[1729598073727,0.2130825,67372.0,67371.0,0.29855159]
[1729598081125,0.2130825,67372.0,67371.0,0.22428759]
[1729598081328,0.2130825,67372.0,67371.0,0.10232277]
[1729598081925,0.2130825,67372.0,67371.0,0.17658677]
[1729598082124,0.5738825,67372.0,67371.0,0.10232277]
[1729598082932,0.5738825,67372.0,67371.0,0.17658677]
[1729598083127,0.6838825,67372.0,67371.0,0.10232277]
[1729598083327,0.074267,67368.0,67367.0,0.00222652]
[1729598083635,0.294267,67368.0,67367.0,0.00222652]
[1729598084523,0.294267,67368.0,67367.0,0.00522652]
[1729598084719,0.295267,67368.0,67367.0,0.00622652]
[1729598085922,0.295267,67368.0,67367.0,0.00322652]
[1729598086129,0.298267,67368.0,67367.0,0.00422652]
[1729598087027,0.32931174,67368.0,67367.0,0.00422652]
[1729598087231,0.298267,67368.0,67367.0,0.00422652]
[1729598088532,0.3293728,67368.0,67367.0,0.00422652]
[1729598090525,0.298267,67368.0,67367.0,0.00422652]
[1729598091033,0.299267,67368.0,67367.0,0.00422652]
[1729598091528,0.189267,67368.0,67367.0,0.00422652]
[1729598091837,0.189267,67368.0,67367.0,0.00322652]
[1729598091838,0.550067,67368.0,67367.0,0.00322652]
[1729598092135,0.559067,67368.0,67367.0,0.00422652]
[1729598092633,0.545067,67368.0,67367.0,0.00222652]
[1729598092934,0.545067,67368.0,67367.0,0.002]
[1729598092935,0.569067,67368.0,67367.0,0.002]
[1729598093341,0.569067,67368.0,67367.0,0.07614319]
[1729598093541,0.679067,67368.0,67367.0,0.07614319]
[1729598093726,0.679067,67368.0,67367.0,0.07614269]
[1729598094032,0.679067,67368.0,67367.0,0.002]
[1729598094232,0.318267,67368.0,67367.0,0.002]
[1729598094430,0.679067,67368.0,67367.0,0.002]
[1729598094831,0.679067,67368.0,67365.0,0.05931915]
[1729598095129,0.679067,67368.0,67346.0,0.11823596]
[1729598095130,0.545069,67366.0,67364.0,0.05931915]
[1729598095331,0.074271,67364.0,67363.0,0.05931915]
[1729598095628,0.074271,67364.0,67362.0,0.05931915]
[1729598095629,0.074272,67363.0,67362.0,0.05931915]
[1729598095833,0.184272,67363.0,67362.0,0.05931915]
[1729598096334,0.11,67363.0,67361.0,0.05931915]
[1729598096533,0.074275,67361.0,67360.0,0.05931915]
[1729598096727,0.545075,67361.0,67360.0,0.05931915]
[1729598096928,0.074276,67360.0,67359.0,0.05931915]
[1729598097136,0.184276,67360.0,67358.0,0.05931915]
[1729598097438,0.184277,67359.0,67358.0,0.05931915]
[1729598098433,0.074278,67358.0,67357.0,0.05931915]
[1729598098630,0.074286,67351.0,67350.0,0.074287]
[1729598098837,0.545086,67351.0,67350.0,0.074287]
[1729598100128,0.551086,67351.0,67350.0,0.075287]
[1729598100329,0.557086,67351.0,67350.0,0.076287]
[1729598100756,0.557086,67351.0,67350.0,0.002]
[1729598102632,0.543766,67351.0,67350.0,0.002]
[1729598102938,0.543766,67351.0,67350.0,0.076287]
[1729598103138,0.543766,67351.0,67350.0,0.002]
[1729598104444,0.447086,67351.0,67350.0,0.002]
[1729598104629,0.5709849,67351.0,67350.0,0.002]
[1729598106540,0.5709849,67351.0,67350.0,0.076287]
[1729598108134,0.5709849,67351.0,67350.0,0.002]
[1729598108339,0.5709849,67351.0,67350.0,0.076287]
[1729598108534,0.6809849,67351.0,67350.0,0.002]
[1729598108845,0.5709849,67351.0,67350.0,0.002]
[1729598109937,0.6809849,67351.0,67350.0,0.002]
[1729598110337,0.6809849,67351.0,67350.0,0.076287]
[1729598111734,0.6809849,67351.0,67350.0,0.17794126]
[1729598111942,0.6809849,67351.0,67350.0,0.17794127]
[1729598112332,0.5843049,67351.0,67350.0,0.17794127]
[1729598112545,0.6809449,67351.0,67350.0,0.17794127]
[1729598113136,0.6809449,67351.0,67350.0,0.076287]
[1729598116043,0.5709449,67351.0,67350.0,0.076287]
[1729598116351,0.5843049,67351.0,67350.0,0.076287]
[1729598117542,0.5100189,67351.0,67350.0,0.076287]
[1729598118248,0.5843049,67351.0,67350.0,0.076287]
[1729598118445,0.5843049,67351.0,67350.0,0.13556819]
[1729598118952,0.4000189,67351.0,67350.0,0.24556819]
[1729598119251,0.4000189,67351.0,67350.0,0.186287]
[1729598119856,0.0392189,67351.0,67350.0,0.186287]
[1729598120354,0.0392189,67351.0,67350.0,0.40902661]
[1729598120552,0.435066,67370.0,67350.0,0.96446661]
[1729598120752,0.11,67361.0,67358.0,0.19899189]
[1729598121055,0.074274,67362.0,67361.0,0.074275]
[1729598121250,0.184274,67362.0,67361.0,0.17589156]
[1729598121752,0.184274,67362.0,67361.0,0.17551848]
[1729598122655,0.197274,67362.0,67361.0,0.17651848]
[1729598123159,0.558074,67362.0,67361.0,0.17651848]
[1729598123657,0.565074,67362.0,67361.0,0.17751848]
[1729598124046,0.661714,67362.0,67361.0,0.17751848]
[1729598125645,0.47744,67362.0,67361.0,0.17751848]
[1729598125847,0.58744,67362.0,67361.0,0.17751848]
[1729598127657,0.58744,67362.0,67361.0,0.2664924]
[1729598128247,0.58744,67362.0,67361.0,0.17751848]
[1729598131465,0.58744,67362.0,67361.0,0.17746163]
[1729598131766,0.22664,67362.0,67361.0,0.17746163]
[1729598131962,0.58744,67362.0,67361.0,0.17746163]
[1729598134563,0.58744,67362.0,67361.0,0.27864928]
[1729598134759,0.58744,67362.0,67361.0,0.17746265]
[1729598134966,0.22664,67362.0,67361.0,0.17746265]
[1729598135268,0.58744,67362.0,67361.0,0.076275]
[1729598137263,0.02,67362.0,67361.0,0.076275]
[1729598143280,0.02,67362.0,67361.0,0.29748275]
[1729598145881,0.02,67362.0,67361.0,0.29756491]
[1729598146272,0.02660664,67364.0,67363.0,0.074272]
[1729598146467,0.11,67367.0,67366.0,0.074269]
[1729598146771,0.13609249,67367.0,67366.0,0.17522419]
[1729598148077,0.21036049,67367.0,67366.0,0.17522419]
[1729598148568,0.21136049,67367.0,67366.0,0.29746644]
[1729598150181,0.21136049,67367.0,67366.0,0.17722419]
[1729598150783,0.21136049,67367.0,67366.0,0.17718354]
[1729598151085,0.21136049,67367.0,67366.0,0.10291454]
[1729598152382,0.32136049,67367.0,67366.0,0.10291454]
[1729598152580,0.32136049,67367.0,67366.0,0.002]
[1729598152981,0.41796049,67367.0,67366.0,0.002]
[1729598153281,0.074271,67364.0,67356.0,0.08904708]
[1729598153486,0.074284,67353.0,67351.0,0.08904708]
[1729598153687,0.074284,67353.0,67352.0,0.10047735]
[1729598153986,0.184284,67353.0,67352.0,0.17476235]
[1729598154582,0.11,67353.0,67352.0,0.17476235]
[1729598154774,0.111,67353.0,67352.0,0.17476235]
[1729598154979,0.185284,67353.0,67352.0,0.17476235]
[1729598155481,0.21176713,67353.0,67352.0,0.17576235]
[1729598155684,0.13748313,67353.0,67352.0,0.17576235]
[1729598158388,0.13748313,67353.0,67352.0,0.075285]
[1729598162891,0.02748313,67353.0,67352.0,0.185285]
[1729598163112,0.001,67353.0,67352.0,0.520685]
[1729598163782,0.001,67353.0,67352.0,0.56516648]
[1729598164188,0.001,67353.0,67352.0,0.520685]
[1729598164894,0.001,67353.0,67352.0,0.56516641]
[1729598165692,0.3608,67357.0,67356.0,0.07428]
[1729598165892,0.3608,67357.0,67356.0,0.40245816]
[1729598166092,0.38764787,67357.0,67356.0,0.40245816]
[1729598166285,0.34304996,67357.0,67356.0,0.40245816]
[1729598166685,0.02684787,67357.0,67356.0,0.40245816]
[1729598166885,0.11,67363.0,67357.0,0.074279]
[1729598167090,0.184274,67363.0,67362.0,0.074274]
[1729598167288,0.184274,67363.0,67362.0,0.17380957]
[1729598167897,0.184274,67363.0,67362.0,0.074274]
[1729598167898,0.11,67363.0,67362.0,0.074274]
[1729598168093,0.11,67363.0,67362.0,0.17328631]
[1729598168393,0.4708,67363.0,67362.0,0.17328631]
[1729598168592,0.111,67363.0,67362.0,0.17428631]
[1729598170196,0.111,67363.0,67362.0,0.17528631]
[1729598170589,0.4718,67363.0,67362.0,0.17528631]
[1729598172698,0.4718,67363.0,67362.0,0.076274]
[1729598174490,0.546072,67363.0,67362.0,0.076274]
[1729598174802,0.546072,67363.0,67362.0,0.002]
[1729598175302,0.58011007,67363.0,67362.0,0.002]
[1729598175495,0.58011007,67363.0,67362.0,0.076274]
[1729598175901,0.546072,67363.0,67362.0,0.076274]
[1729598177789,0.4718,67363.0,67362.0,0.076274]
[1729598178114,0.3618,67363.0,67362.0,0.186274]
[1729598179596,0.001,67363.0,67362.0,0.186274]
[1729598180690,0.001,67363.0,67362.0,0.40324115]
[1729598181294,0.02623502,67367.0,67366.0,0.074269]
[1729598181499,0.3608,67369.0,67368.0,0.074267]
[1729598181800,0.3608,67369.0,67368.0,0.17325009]
[1729598181801,0.435066,67369.0,67368.0,0.17325009]
[1729598183100,0.435066,67369.0,67368.0,0.17320778]
[1729598183397,0.435066,67369.0,67368.0,0.17420778]
[1729598183603,0.545066,67369.0,67368.0,0.24837996]
[1729598183803,0.57115837,67369.0,67368.0,0.24837996]
[1729598184399,0.57115837,67369.0,67368.0,0.14943918]
[1729598184602,0.57115837,67369.0,67368.0,0.24938517]
[1729598184603,0.57215837,67369.0,67368.0,0.24938517]
[1729598185507,0.57215837,67369.0,67368.0,0.15043918]
[1729598185715,0.57215837,67369.0,67368.0,0.24942847]
[1729598186409,0.57215837,67369.0,67368.0,0.15043918]
[1729598186599,0.57215837,67369.0,67368.0,0.24943036]
[1729598186798,0.57215837,67369.0,67368.0,0.15043918]
[1729598187010,0.57215837,67369.0,67368.0,0.24946167]
[1729598187409,0.57215837,67369.0,67368.0,0.076267]
[1729598187609,0.60647453,67369.0,67368.0,0.002]
[1729598188709,0.64617649,67369.0,67368.0,0.002]
[1729598191708,0.60647453,67369.0,67368.0,0.002]
[1729598192113,0.64635437,67369.0,67368.0,0.002]
[1729598192314,0.60647453,67369.0,67368.0,0.002]
[1729598195733,0.57215837,67369.0,67368.0,0.10111045]
[1729598197635,0.57215837,67369.0,67368.0,0.10111827]
[1729598198931,0.57215837,67369.0,67368.0,0.17538527]
[1729598202633,0.76188373,67369.0,67368.0,0.002]
[1729598202932,0.80151006,67369.0,67368.0,0.002]
[1729598203133,0.69151006,67369.0,67368.0,0.002]
[1729598205543,0.79811006,67369.0,67368.0,0.002]
[1729598206837,0.75251453,67369.0,67368.0,0.002]
[1729598207742,0.79811025,67369.0,67368.0,0.002]
[1729598208629,0.79811025,67369.0,67368.0,0.001]
[1729598208941,0.75251453,67369.0,67368.0,0.002]
[1729598209144,0.64591453,67369.0,67368.0,0.002]
[1729598209542,0.69150996,67369.0,67368.0,0.002]
[1729598210729,0.57215837,67369.0,67368.0,0.002]
[1729598212333,1.12747837,67369.0,67368.0,0.002]
[1729598212542,1.12747837,67369.0,67353.0,0.07424511]
[1729598212543,1.05321237,67369.0,67353.0,0.07424511]
[1729598212844,1.05321237,67369.0,67339.0,0.11192949]
[1729598212845,0.074286,67351.0,67348.0,0.07424511]
[1729598213042,0.9416,67354.0,67348.0,0.07424511]
[1729598213043,0.11,67349.0,67348.0,0.07424511]
[1729598213233,0.11,67349.0,67347.0,0.07429]
[1729598213435,0.3608,67348.0,67347.0,0.07429]
[1729598213632,0.3608,67348.0,67347.0,0.24790052]
[1729598213837,0.001,67351.0,67347.0,0.17365541]
[1729598214045,0.001,67351.0,67350.0,0.14850326]
[1729598214240,0.001,67351.0,67350.0,0.17365241]
[1729598214445,0.02661421,67351.0,67350.0,0.17365241]
[1729598214645,0.07428,67357.0,67350.0,0.09936541]
[1729598214847,0.07428,67357.0,67355.0,0.184281]
[1729598215245,0.10053297,67357.0,67355.0,0.184281]
[1729598215646,0.07428,67356.0,67355.0,0.184281]
[1729598216246,0.07428,67356.0,67355.0,0.185281]
[1729598216765,0.07428,67356.0,67355.0,0.111]
[1729598217049,0.07428,67356.0,67355.0,0.184281]
[1729598217254,0.07628,67356.0,67355.0,0.185281]
[1729598217951,0.07628,67356.0,67355.0,0.111]
[1729598218547,0.07628,67356.0,67355.0,0.001]
[1729598218762,0.18628,67356.0,67355.0,0.001]
[1729598220054,0.112,67356.0,67355.0,0.001]
[1729598220556,0.002,67356.0,67355.0,0.111]
[1729598220945,0.002,67356.0,67355.0,0.7295075]
[1729598223261,0.002,67356.0,67355.0,0.2841075]
[1729598223450,0.002,67356.0,67355.0,0.7295075]
[1729598224954,0.002,67356.0,67355.0,0.82826411]
[1729598225153,0.002,67356.0,67355.0,0.72943761]
[1729598225763,0.002,67356.0,67355.0,0.630681]
[1729598225764,0.07628,67356.0,67355.0,0.630681]
[1729598231164,0.07628,67356.0,67355.0,0.185281]
[1729598232762,0.07628,67356.0,67355.0,0.28412473]
[1729598234867,0.07628,67356.0,67355.0,0.28424075]
[1729598238465,0.07628,67356.0,67355.0,0.09995975]
[1729598238868,0.07628,67356.0,67355.0,0.17424075]
[1729598239663,0.07628,67356.0,67355.0,0.17428667]
[1729598242970,0.07628,67356.0,67355.0,0.29242319]
[1729598247064,0.07628,67356.0,67355.0,0.17428667]
[1729598247569,0.07628,67356.0,67355.0,0.29246705]
[1729598247869,0.07628,67356.0,67355.0,0.075281]
[1729598255888,0.07628,67356.0,67355.0,0.21826464]
[1729598256175,0.18628,67356.0,67355.0,0.10011881]
[1729598256379,0.18628,67356.0,67355.0,0.1743914]
[1729598257082,0.18628,67356.0,67355.0,0.07527259]
[1729598257381,0.18628,67356.0,67355.0,0.001]
[1729598261269,0.63168,67356.0,67355.0,0.001]
[1729598261478,0.99248,67356.0,67355.0,0.001]
[1729598262283,0.54708,67356.0,67355.0,0.001]
[1729598262871,0.61989902,67356.0,67355.0,0.001]
[1729598264785,0.58077618,67356.0,67355.0,0.001]
[1729598266576,0.61986763,67356.0,67355.0,0.001]
[1729598268077,1.17526763,67356.0,67355.0,0.001]
[1729598271083,1.10248,67356.0,67355.0,0.001]
[1729598277790,1.10248,67356.0,67350.0,0.04450509]
[1729598277791,0.074286,67351.0,67350.0,0.04450509]
[1729598277993,0.074294,67344.0,67341.0,0.074297]
[1729598278189,0.2178626,67343.0,67341.0,0.074297]
[1729598278385,0.0335676,67342.0,67341.0,0.074297]
[1729598279491,0.0335676,67342.0,67341.0,0.080297]
[1729598279888,0.001,67343.0,67341.0,0.080297]
[1729598280092,0.3608,67344.0,67343.0,0.074295]
[1729598280285,0.39447665,67344.0,67343.0,0.074295]
[1729598280481,0.3608,67344.0,67343.0,0.074295]
[1729598281182,0.39458114,67344.0,67343.0,0.079295]
[1729598281379,0.184288,67349.0,67343.0,0.005]
[1729598281579,0.03392045,67348.0,67347.0,0.07429]
[1729598282184,0.10820945,67348.0,67347.0,0.07429]
[1729598282995,0.10820945,67348.0,67347.0,0.07529]
[1729598283894,0.10820945,67348.0,67347.0,0.07729]
[1729598284285,0.03392045,67348.0,67347.0,0.07729]
[1729598285390,0.07320101,67348.0,67347.0,0.07729]
[1729598285592,0.14749001,67348.0,67347.0,0.07729]
[1729598286095,0.074289,67348.0,67347.0,0.10259716]
[1729598286791,0.074289,67348.0,67347.0,0.10260393]
[1729598287591,0.074289,67348.0,67347.0,0.17689393]
[1729598288293,0.074289,67348.0,67347.0,0.17689857]
[1729598289298,0.074289,67348.0,67347.0,0.10260857]
[1729598290188,0.074289,67348.0,67347.0,0.19178295]
[1729598290591,0.074289,67348.0,67347.0,0.10260857]
[1729598291184,0.074289,67348.0,67347.0,0.19178295]
[1729598291590,0.074289,67348.0,67347.0,0.19170435]
[1729598291793,0.074289,67348.0,67347.0,0.10252997]
[1729598293097,0.074289,67348.0,67347.0,0.003]
[1729598293098,0.10800024,67348.0,67347.0,0.003]
[1729598301098,0.074289,67348.0,67347.0,0.10257829]
[1729598301404,0.074289,67348.0,67347.0,0.10255725]
[1729598306507,0.074289,67348.0,67347.0,0.10265529]
[1729598307307,0.074289,67348.0,67347.0,0.17694529]
[1729598307809,0.074289,67348.0,67347.0,0.26611967]
[1729598308006,0.074289,67348.0,67347.0,0.10265529]
[1729598309213,0.074289,67348.0,67347.0,0.17694529]
[1729598310211,0.074289,67348.0,67347.0,0.10265529]
[1729598311298,0.074289,67348.0,67347.0,0.10253383]
[1729598311712,0.074289,67348.0,67347.0,0.19171053]
[1729598312005,0.074289,67348.0,67347.0,0.10253383]
[1729598316112,0.10814823,67348.0,67347.0,0.003]
[1729598321105,0.10817769,67348.0,67347.0,0.003]
[1729598322911,0.10817769,67348.0,67346.0,0.074291]
[1729598323214,0.077289,67348.0,67347.0,0.09953957]
[1729598323913,0.076289,67348.0,67347.0,0.09953957]
[1729598324126,0.075289,67348.0,67347.0,0.09953957]
[1729598324313,0.077289,67348.0,67347.0,0.09953957]
[1729598325920,0.076289,67348.0,67347.0,0.18870926]
[1729598326110,0.075289,67348.0,67347.0,0.18870926]
[1729598326417,0.077289,67348.0,67347.0,0.18870926]
[1729598327008,0.077289,67348.0,67347.0,0.09953256]
[1729598327809,0.077289,67348.0,67347.0,0.17386814]
[1729598328010,0.077289,67348.0,67347.0,0.07433558]
[1729598328220,1.167289,67348.0,67347.0,0.07433558]
[1729598328510,0.07429,67347.0,67346.0,0.07433558]
[1729598328717,0.18429,67347.0,67346.0,0.17399437]
[1729598329415,0.18429,67347.0,67346.0,0.07433558]
[1729598329923,0.18529,67347.0,67346.0,0.09963148]
[1729598331824,0.001,67347.0,67346.0,0.09963148]
[1729598332012,0.001,67347.0,67346.0,0.17392248]
[1729598334323,0.07529,67347.0,67346.0,0.17392248]
[1729598335419,0.07529,67347.0,67346.0,0.1738464]
[1729598336524,0.001,67347.0,67346.0,0.1738464]
[1729598336826,0.02666439,67349.0,67348.0,0.074289]
[1729598337021,1.00084,67350.0,67349.0,0.074288]
[1729598337223,1.0,67350.0,67349.0,0.29214189]
[1729598338225,1.02737014,67350.0,67349.0,0.074288]
[1729598339634,1.03137014,67350.0,67349.0,0.074288]
[1729598339928,1.03437014,67350.0,67349.0,0.074288]
[1729598340327,1.007,67350.0,67349.0,0.074288]
[1729598340841,1.007,67350.0,67349.0,0.184288]
[1729598343517,1.007,67350.0,67349.0,0.074288]
[1729598345431,1.007,67350.0,67349.0,0.17323011]
[1729598348333,1.007,67350.0,67349.0,0.17322571]
[1729598353231,1.007,67350.0,67349.0,0.074288]
[1729598360231,1.007,67350.0,67349.0,0.17326768]
[1729598361135,1.081287,67350.0,67349.0,0.17326768]
[1729598361335,1.081287,67350.0,67349.0,0.26237831]
[1729598361940,1.081287,67350.0,67349.0,0.17326768]
[1729598362538,1.007,67350.0,67349.0,0.17326768]
[1729598362938,1.007,67350.0,67349.0,0.26235613]
[1729598363234,1.007,67350.0,67349.0,0.17326768]
[1729598366342,1.007,67350.0,67349.0,0.29146891]
[1729598368347,1.007,67350.0,67343.0,0.04458036]
[1729598368348,1.117,67350.0,67343.0,0.04458036]
[1729598368547,0.11,67346.0,67345.0,0.074292]
[1729598369346,0.07429,67347.0,67346.0,0.074291]
[1729598370134,0.11,67349.0,67344.0,0.11]
[1729598370351,0.11,67349.0,67348.0,0.074289]
[1729598370542,0.14411268,67349.0,67348.0,0.074289]
[1729598371044,0.21840068,67349.0,67348.0,0.074289]
[1729598371546,0.187288,67349.0,67348.0,0.074289]
[1729598371740,0.22154032,67349.0,67348.0,0.074289]
[1729598371938,0.187288,67349.0,67348.0,0.074289]
[1729598372841,0.189288,67349.0,67348.0,0.074289]
[1729598375345,0.189288,67349.0,67348.0,0.29168599]
[1729598382359,0.189288,67349.0,67348.0,0.17346819]
[1729598382554,0.189288,67349.0,67348.0,0.26262546]
[1729598382754,0.189288,67349.0,67348.0,0.17346819]
[1729598383155,0.189288,67349.0,67348.0,0.26262546]
[1729598383463,0.22350159,67349.0,67348.0,0.074289]
[1729598384053,0.58430159,67349.0,67348.0,0.074289]
[1729598384358,0.07429,67348.0,67339.0,0.074298]
[1729598384560,0.07429,67348.0,67346.0,0.074291]
[1729598385251,0.07429,67348.0,67347.0,0.07429]
[1729598385458,0.07529,67348.0,67347.0,0.07429]
[1729598386159,0.10844938,67348.0,67347.0,0.07429]
[1729598386356,0.11144938,67348.0,67347.0,0.07429]
[1729598386756,0.22144938,67348.0,67347.0,0.07429]
[1729598386956,0.21944938,67348.0,67347.0,0.07429]
[1729598387162,0.22144938,67348.0,67347.0,0.07429]
[1729598387464,0.18729,67348.0,67347.0,0.07429]
[1729598388666,0.18629,67348.0,67347.0,0.07429]
[1729598388855,0.18729,67348.0,67347.0,0.07429]
[1729598390262,0.18729,67348.0,67347.0,0.17366733]
[1729598393163,0.54809,67348.0,67347.0,0.17366733]
[1729598396062,0.54809,67348.0,67347.0,0.09937733]
[1729598399067,0.4738,67348.0,67346.0,0.074274]
[1729598399371,0.438089,67348.0,67347.0,0.074274]
[1729598399962,0.438089,67348.0,67341.0,0.08915727]
[1729598399963,0.07429,67347.0,67346.0,0.074274]
[1729598400164,0.07429,67347.0,67346.0,0.17386849]
[1729598400365,0.18429,67347.0,67346.0,0.074274]
[1729598401367,0.11,67347.0,67345.0,0.07426692]
[1729598401671,0.11,67346.0,67344.0,0.07426692]
[1729598401869,0.184292,67345.0,67344.0,0.07426692]
[1729598402176,0.184292,67345.0,67344.0,0.17389959]
[1729598402365,0.184292,67345.0,67344.0,0.07426692]
[1729598403064,0.184292,67345.0,67336.0,0.08915727]
[1729598403065,0.074293,67344.0,67343.0,0.07426692]
[1729598403271,0.184293,67344.0,67343.0,0.17390059]
[1729598404074,0.184293,67344.0,67343.0,0.09963367]
[1729598404274,0.184293,67344.0,67343.0,0.17388928]
[1729598404982,0.184293,67344.0,67343.0,0.10063367]
[1729598405374,0.21797858,67344.0,67343.0,0.001]
[1729598405876,0.10797858,67344.0,67343.0,0.001]
[1729598406078,0.21797858,67344.0,67343.0,0.004]
[1729598406575,0.24496046,67344.0,67343.0,0.004]
[1729598407276,0.60576046,67344.0,67343.0,0.004]
[1729598408576,0.60572492,67344.0,67343.0,0.004]
[1729598409281,0.57207488,67344.0,67343.0,0.004]
[1729598409881,0.21127488,67344.0,67343.0,0.004]
[1729598410087,0.57207488,67344.0,67343.0,0.004]
[1729598410987,0.60570168,67344.0,67343.0,0.004]
[1729598411183,0.57207488,67344.0,67343.0,0.004]
[1729598411383,0.60569338,67344.0,67343.0,0.004]
[1729598411683,0.57207488,67344.0,67343.0,0.003]
[1729598411894,0.57907488,67344.0,67343.0,0.004]
[1729598412589,0.57907488,67344.0,67343.0,0.001]
[1729598412796,0.58307488,67344.0,67343.0,0.001]
[1729598418610,0.58307488,67344.0,67343.0,0.10054049]
[1729598420409,0.58307488,67344.0,67343.0,0.001]
[1729598420710,0.03798188,67344.0,67343.0,0.28466617]
[1729598422310,0.03798188,67344.0,67343.0,0.37376489]
[1729598423108,0.03798188,67344.0,67343.0,0.28466617]
[1729598424113,0.03798188,67344.0,67343.0,0.37375992]
[1729598424810,0.03798188,67344.0,67343.0,0.28466617]
[1729598426409,0.39878188,67344.0,67343.0,0.28466617]
[1729598428518,0.43851849,67344.0,67343.0,0.185295]
[1729598428810,0.4727433,67344.0,67343.0,0.185295]
[1729598429405,0.47274734,67344.0,67343.0,0.185295]
[1729598431318,0.14798188,67344.0,67343.0,0.075295]
[1729598431922,0.1823429,67344.0,67343.0,0.075295]